fUSD/lending_fUSD_20260601
["ID","MTS","AMOUNT","RATE_DAILY","PERIOD"]
[423707467,1780320643000,-150.0,0.00014178,2]
[423707468,1780320643000,-150.0,0.00014195,2]
[423707446,1780320643000,-150.0,0.00014043,2]
[423707454,1780320643000,-150.0,0.00014094,2]
[423707445,1780320643000,-150.0,0.00014027,2]
[423707421,1780320643000,-150.0,0.00013858,2]
[423707436,1780320643000,-65260.44203364,0.00013962,2]
[423707466,1780320643000,-150.0,0.00014161,2]
[423707409,1780320643000,-150.0,0.00013773,2]
[423707408,1780320643000,-150.0,0.00013769,2]
[423707411,1780320643000,-150.0,0.00013787,2]
[423707412,1780320643000,-150.0,0.00013787,2]
[423707410,1780320643000,-150.0,0.00013774,2]
[423707417,1780320643000,-166.66,0.00013836,2]
[423707416,1780320643000,-150.0,0.00013824,2]
[423707415,1780320643000,-150.0,0.00013808,2]
[423707420,1780320643000,-150.0,0.00013849,2]
[423707418,1780320643000,-150.0,0.00013841,2]
[423707413,1780320643000,-150.0,0.00013791,2]
[423707419,1780320643000,-150.0,0.00013844,2]
[423707444,1780320643000,-150.0,0.0001401,2]
[423707414,1780320643000,-150.0,0.00013798,2]
[423707426,1780320643000,-150.0,0.00013901,2]
[423707423,1780320643000,-652.4,0.00013868,2]
[423707422,1780320643000,-150.0,0.00013862,2]
[423707433,1780320643000,-150.0,0.00013953,2]
[423707425,1780320643000,-150.0,0.00013892,2]
[423707428,1780320643000,-150.0,0.00013916,2]
[423707432,1780320643000,-150.0,0.00013942,2]
[423707430,1780320643000,-150.0,0.00013925,2]
[423707429,1780320643000,-150.0,0.00013916,2]
[423707427,1780320643000,-150.0,0.00013909,2]
[423707434,1780320643000,-150.0,0.00013956,2]
[423707435,1780320643000,-150.0,0.00013959,2]
[423707437,1780320643000,-166.66,0.00013973,2]
[423707424,1780320643000,-150.0,0.00013875,2]
[423707465,1780320643000,-150.0,0.00014159,2]
[423707431,1780320643000,-150.0,0.00013937,2]
[423707471,1780320643000,-150.0,0.00014212,2]
[423707508,1780320643000,-150.0,0.00014447,2]
[423707513,1780320643000,-150.0,0.00014498,2]
[423707511,1780320643000,-150.0,0.00014481,2]
[423707510,1780320643000,-150.0,0.0001447,2]
[423707509,1780320643000,-150.0,0.00014464,2]
[423707512,1780320643000,-150.0,0.00014487,2]
[423707516,1780320643000,-150.0,0.00014521,2]
[423707537,1780320643000,-150.0,0.00014687,2]
[423707518,1780320643000,-150.0,0.00014537,2]
[423707520,1780320643000,-150.0,0.00014558,2]
[423707527,1780320643000,-150.0,0.00014612,2]
[423707528,1780320643000,-150.0,0.00014616,2]
[423707519,1780320643000,-150.0,0.00014548,2]
[423707506,1780320643000,-150.0,0.00014431,2]
[423707521,1780320643000,-150.0,0.00014558,2]
[423707526,1780320643000,-319.23,0.000146,2]
[423707525,1780320643000,-150.0,0.00014599,2]
[423707523,1780320643000,-150.0,0.00014573,2]
[423707524,1780320643000,-150.0,0.00014582,2]
[423707530,1780320643000,-150.0,0.00014629,2]
[423707529,1780320643000,-150.0,0.00014625,2]
[423707534,1780320643000,-150.0,0.00014666,2]
[423707531,1780320643000,-150.0,0.00014633,2]
[423707532,1780320643000,-150.0,0.0001465,2]
[423707536,1780320643000,-150.0,0.00014683,2]
[423707535,1780320643000,-150.0,0.00014676,2]
[423707533,1780320643000,-946.13,0.00014658,2]
[423707473,1780320643000,-150.0,0.00014237,2]
[423707517,1780320643000,-150.0,0.00014532,2]
[423707507,1780320643000,-65260.44203364,0.00014431,2]
[423707522,1780320643000,-150.0,0.00014565,2]
[423707515,1780320643000,-150.0,0.00014518,2]
[423707514,1780320643000,-150.0,0.00014515,2]
[423707485,1780320643000,-150.0,0.00014315,2]
[423707486,1780320643000,-150.0,0.0001433,2]
[423707475,1780320643000,-150.0,0.00014237,2]
[423707474,1780320643000,-150.0,0.00014237,2]
[423707476,1780320643000,-150.0,0.00014245,2]
[423707479,1780320643000,-150.0,0.00014263,2]
[423707477,1780320643000,-166.66,0.00014247,2]
[423707484,1780320643000,-150.0,0.00014313,2]
[423707478,1780320643000,-150.0,0.00014262,2]
[423707483,1780320643000,-17318.50041089,0.00014297,2]
[423707482,1780320643000,-150.0,0.00014296,2]
[423707480,1780320643000,-150.0,0.00014273,2]
[423707487,1780320643000,-150.0,0.00014331,2]
[423707481,1780320643000,-150.0,0.00014279,2]
[423707489,1780320643000,-150.0,0.00014344,2]
[423707505,1780320643000,-150.0,0.00014424,2]
[423707504,1780320643000,-150.0,0.00014418,2]
[423707503,1780320643000,-150.0,0.00014415,2]
[423707492,1780320643000,-150.0,0.00014366,2]
[423707491,1780320643000,-150.0,0.00014363,2]
[423707499,1780320643000,-150.0,0.00014387,2]
[423707496,1780320643000,-150.0,0.00014387,2]
[423707493,1780320643000,-150.0,0.0001438,2]
[423707501,1780320643000,-150.0,0.00014397,2]
[423707502,1780320643000,-150.0,0.00014414,2]
[423707490,1780320643000,-150.0,0.00014346,2]
[423707488,1780320643000,-150.0,0.00014344,2]
[423707494,1780320643000,-166.66,0.00014384,2]
[423707566,1780320644000,-10691.16505716,0.000149,2]
[423707559,1780320644000,-150.0,0.00014844,2]
[423707555,1780320644000,-2000.0,0.00014824,2]
[423707558,1780320644000,-150.0,0.00014836,2]
[423707556,1780320644000,-150.0,0.00014831,2]
[423707560,1780320644000,-150.0,0.00014852,2]
[423707561,1780320644000,-150.0,0.00014868,2]
[423707569,1780320644000,-240.01944334,0.000149,2]
[423707564,1780320644000,-150.0,0.00014893,2]
[423707562,1780320644000,-150.0,0.00014883,2]
[423707563,1780320644000,-150.0,0.00014885,2]
[423707568,1780320644000,-65260.44203364,0.000149,2]
[423707570,1780320644000,-150.0,0.00014902,2]
[423707567,1780320644000,-17318.50041089,0.000149,2]
[423707565,1780320644000,-5685.54957624,0.000149,3]
[423707545,1780320644000,-150.0,0.00014751,2]
[423707541,1780320644000,-150.0,0.00014705,2]
[423707552,1780320644000,-300.99112264,0.000148,2]
[423707580,1780320644000,-277.75158037,0.00014986,2]
[423707540,1780320644000,-150.0,0.00014701,2]
[423707539,1780320644000,-150.0,0.000147,2]
[423707538,1780320644000,-150.0,0.00014687,2]
[423707543,1780320644000,-150.0,0.00014728,2]
[423707544,1780320644000,-150.0,0.00014734,2]
[423707546,1780320644000,-150.0,0.00014767,2]
[423707542,1780320644000,-150.0,0.00014717,2]
[423707553,1780320644000,-150.0,0.00014801,2]
[423707551,1780320644000,-150.0,0.00014799,2]
[423707549,1780320644000,-150.0,0.0001478,2]
[423707547,1780320644000,-150.0,0.00014772,2]
[423707548,1780320644000,-150.0,0.00014772,2]
[423707550,1780320644000,-150.0,0.00014784,2]
[423707554,1780320644000,-150.0,0.00014818,2]
[423707571,1780320644000,-150.0,0.00014915,2]
[423707557,1780320644000,-150.0,0.00014835,2]
[423707572,1780320644000,-150.0,0.00014919,2]
[423707590,1780320644000,-500.0,0.00014999,2]
[423707594,1780320644000,-500.0,0.00014999,2]
[423707603,1780320644000,-8603810.54820634,0.00015,2]
[423707593,1780320644000,-500.0,0.00014999,2]
[423707600,1780320644000,-300.0,0.00014999,2]
[423707601,1780320644000,-300.0,0.00014999,2]
[423707588,1780320644000,-500.0,0.00014999,2]
[423707595,1780320644000,-500.0,0.00014999,2]
[423707602,1780320644000,-300.0,0.00014999,2]
[423707597,1780320644000,-500.0,0.00014999,2]
[423707598,1780320644000,-500.0,0.00014999,2]
[423707604,1780320644000,-1470.52495761,0.00015,2]
[423707605,1780320644000,-2291.55776328,0.00015,2]
[423707606,1780320644000,-1687.4986591,0.00015,2]
[423707596,1780320644000,-500.0,0.00014999,2]
[423707591,1780320644000,-500.0,0.00014999,2]
[423707599,1780320644000,-339.72485251,0.00014999,2]
[423707587,1780320644000,-1008.9968436,0.0001499,2]
[423707589,1780320644000,-500.0,0.00014999,2]
[423707576,1780320644000,-150.0,0.00014969,2]
[423707573,1780320644000,-150.0,0.00014935,2]
[423707574,1780320644000,-150.0,0.00014936,2]
[423707578,1780320644000,-153.92330007,0.00014986,2]
[423707577,1780320644000,-156.32339601,0.00014986,2]
[423707575,1780320644000,-150.0,0.00014953,2]
[423707579,1780320644000,-271.09959181,0.00014986,2]
[423707584,1780320644000,-154.74719869,0.00014986,2]
[423707585,1780320644000,-152.60770856,0.00014986,2]
[423707586,1780320644000,-177.38153286,0.00014986,2]
[423707592,1780320644000,-500.0,0.00014999,2]
[423707581,1780320644000,-185.25931035,0.00014986,2]
[423707607,1780320644000,-387.05221179,0.00015,2]
[423707582,1780320644000,-151.40936633,0.00014986,2]
[423707583,1780320644000,-210.33589891,0.00014986,2]
[423707608,1780320645000,-993102.15118487,0.00015,2]
[423707610,1780320645000,-702.03035918,0.00015,14]
[423707609,1780320645000,-2079.75528447,0.00015,2]
[423707612,1780320645000,-1717616.50622952,0.00015,2]
[423707613,1780320645000,-310.70291687,0.00015,2]
[423707614,1780320645000,-394.47885385,0.00010599,2]
[423707611,1780320645000,-8095.5231349,0.00015,2]
[423707619,1780320645000,-5970.0932253,0.00015,2]
[423707615,1780320645000,-480.94190191,0.00010599,2]
[423707622,1780320645000,-423.29850855,0.00011927,2]
[423707618,1780320645000,-5038.07347146,0.00015,2]
[423707620,1780320645000,-411741.55239674,0.00015,2]
[423707616,1780320645000,-198.69502262,0.00010599,2]
[423707617,1780320645000,-497.63538652,0.00010599,2]
[423707626,1780320646000,-5432.31669404,0.0001275,2]
[423707627,1780320646000,-5368.90548956,0.00015,2]
[423707625,1780320646000,-43198.7778164,0.00011927,2]
[423707623,1780320646000,-2688.67,0.00011927,2]
[423707624,1780320646000,-2876.72,0.00011927,2]
[423707635,1780320653000,156.27303432,9.536e-05,7]
[423707638,1780321000000,-500.0,9.379e-05,2]
[423707639,1780321054000,-250.0,9.426e-05,2]
[423707640,1780321068000,257.11278104,0.0001,3]
[423707641,1780321107000,-150.0,9.479e-05,2]
[423707643,1780321161000,-158.35,9.231e-05,2]
[423707644,1780321214000,-150.0,9.594e-05,2]
[423707645,1780321267000,-250.0,9.68e-05,2]
[423707646,1780321321000,-152.0,0.00010022,7]
[423707647,1780321374000,-445.22,9.788e-05,2]
[423707649,1780321427000,-1000.0,9.788e-05,2]
[423707650,1780321481000,-3950.00495115,0.0001004,2]
[423707651,1780321482000,-151.0,0.00010047,7]
[423707653,1780321730000,236.16,0.00030082,120]
[423707654,1780321744000,2000.0,0.00030081,120]
[423707655,1780321817000,1000.0,0.00030137,120]
[423707660,1780321832000,-200.0,9.373e-05,2]
[423707661,1780321832000,-951.69510803,9.499e-05,2]
[423707658,1780321832000,-615.8799812,9.088e-05,2]
[423707659,1780321832000,-250.0,9.23e-05,2]
[423707662,1780321832000,-2000.0,9.558e-05,2]
[423707664,1780321832000,-1200.0,9.887e-05,2]
[423707673,1780321832000,-187.06581094,0.00010045,2]
[423707666,1780321832000,-1788.6985847,9.888e-05,2]
[423707663,1780321832000,-164.56,9.691e-05,2]
[423707670,1780321832000,-42.00117344,0.00010021,7]
[423707669,1780321832000,-109.99882656,0.00010021,7]
[423707667,1780321832000,-2880.41787344,9.888e-05,2]
[423707668,1780321832000,-250.0,9.996e-05,2]
[423707671,1780321832000,-300.0,0.00010043,2]
[423707672,1780321832000,-1664.77418906,0.00010045,2]
[423707665,1780321832000,-1786.27354186,9.888e-05,2]
[423707677,1780321833000,-2650.231,0.00010296,2]
[423707675,1780321833000,-169.95,0.00010188,2]
[423707680,1780321833000,-33240.6068,0.00010299,2]
[423707678,1780321833000,-174.124,0.00010296,2]
[423707682,1780321833000,-2500.0,0.00010299,2]
[423707683,1780321833000,-254293.59428318,0.00010299,2]
[423707676,1780321833000,-286.52352968,0.00010199,2]
[423707681,1780321833000,-5000.0,0.00010299,2]
[423707679,1780321833000,-1851.84,0.00010296,2]
[423707685,1780321833000,-314.69518012,0.00010299,2]
[423707686,1780321833000,-287.06431718,0.00010299,2]
[423707684,1780321833000,-23065.00472184,0.00010299,2]
[423707674,1780321833000,-1.0,0.00010047,7]
[423707782,1780321849000,-231.45878386,0.00010398,2]
[423707774,1780321849000,-500.0,0.00010398,2]
[423707781,1780321849000,-500.0,0.00010398,2]
[423707777,1780321849000,-556.50051839,0.00010398,2]
[423707790,1780321849000,-1851.84,0.00010548,2]
[423707780,1780321849000,-500.0,0.00010398,2]
[423707775,1780321849000,-500.0,0.00010398,2]
[423707783,1780321849000,-500.0,0.00010398,2]
[423707794,1780321849000,-1680.0,0.00010875,2]
[423707779,1780321849000,-500.0,0.00010398,2]
[423707776,1780321849000,-500.0,0.00010398,2]
[423707771,1780321849000,-1125.001694,0.00010299,2]
[423707773,1780321849000,-910438.21161837,0.00010299,2]
[423707772,1780321849000,-972.12539855,0.00010299,2]
[423707770,1780321849000,-1502.09576199,0.00010299,2]
[423707769,1780321849000,-420.39539681,0.00010299,2]
[423707768,1780321849000,-298826.34815458,0.00010299,2]
[423707766,1780321849000,-379.0412309,0.00010299,2]
[423707764,1780321849000,-357.865,0.00010299,2]
[423707765,1780321849000,-1058.28808433,0.00010299,2]
[423707763,1780321849000,-922.38256148,0.00010299,2]
[423707762,1780321849000,-4836.79701696,0.00010299,2]
[423707791,1780321849000,-2000.0,0.00010753,2]
[423707778,1780321849000,-365.85901739,0.00010398,2]
[423707795,1780321849000,-250.0,0.00010876,2]
[423707767,1780321849000,-1201.08957971,0.00010299,2]
[423707784,1780321849000,-500.0,0.00010398,2]
[423707792,1780321849000,-257.11278104,0.00010786,2]
[423707812,1780321849000,-2000.0,0.00011948,2]
[423707811,1780321849000,-169.95,0.0001187,2]
[423707810,1780321849000,-30754.06684234,0.00011837,2]
[423707807,1780321849000,-30754.06684236,0.00011099,2]
[423707814,1780321849000,-250.0,0.00012008,2]
[423707809,1780321849000,-30754.06684234,0.00011326,2]
[423707805,1780321849000,-1851.84,0.0001105,2]
[423707808,1780321849000,-30754.06684234,0.00011099,2]
[423707806,1780321849000,-164.55,0.00011081,2]
[423707801,1780321849000,-150.0,0.00010959,2]
[423707800,1780321849000,-4548.42,0.00010959,2]
[423707813,1780321849000,-2351.0,0.00011963,2]
[423707799,1780321849000,-150.0,0.00010959,2]
[423707804,1780321849000,-420.0,0.00011047,2]
[423707788,1780321849000,-10311.82,0.00010405,2]
[423707789,1780321849000,-694.85660702,0.00010428,2]
[423707793,1780321849000,-1851.84,0.00010799,2]
[423707786,1780321849000,-150.0,0.00010398,2]
[423707787,1780321849000,-400.0,0.00010399,2]
[423707797,1780321849000,-500.0,0.00010958,3]
[423707798,1780321849000,-500.0,0.00010958,4]
[423707802,1780321849000,-445.22,0.00011011,2]
[423707796,1780321849000,-500.0,0.00010958,2]
[423707803,1780321849000,-169.95,0.00011029,2]
[423707785,1780321849000,-450.35393308,0.00010398,2]
[423707839,1780321850000,-500.0,0.00013698,2]
[423707846,1780321850000,-500.0,0.00013698,2]
[423707840,1780321850000,-500.0,0.00013698,2]
[423707841,1780321850000,-500.0,0.00013698,2]
[423707842,1780321850000,-500.0,0.00013698,2]
[423707834,1780321850000,-507.7240582,0.00013698,2]
[423707844,1780321850000,-500.0,0.00013698,2]
[423707845,1780321850000,-500.0,0.00013698,2]
[423707843,1780321850000,-163.43660373,0.00013698,2]
[423707852,1780321850000,-500.0,0.00013698,2]
[423707848,1780321850000,-500.0,0.00013698,2]
[423707851,1780321850000,-500.0,0.00013698,2]
[423707850,1780321850000,-500.0,0.00013698,2]
[423707853,1780321850000,-475.43367985,0.00013698,2]
[423707854,1780321850000,-500.0,0.00013698,2]
[423707855,1780321850000,-500.0,0.00013698,2]
[423707857,1780321850000,-500.0,0.00013698,2]
[423707837,1780321850000,-475.61764834,0.00013698,2]
[423707847,1780321850000,-500.0,0.00013698,2]
[423707838,1780321850000,-500.0,0.00013698,2]
[423707821,1780321850000,-160.0,0.00012466,2]
[423707836,1780321850000,-631.64150049,0.00013698,2]
[423707816,1780321850000,-445.22,0.00012235,2]
[423707815,1780321850000,-587.0,0.00012151,2]
[423707818,1780321850000,-236.16,0.00012329,2]
[423707817,1780321850000,-14044.8481,0.00012322,2]
[423707819,1780321850000,-30754.06684234,0.00012347,2]
[423707820,1780321850000,-1230.09181537,0.00012466,2]
[423707822,1780321850000,-209.21103511,0.00012595,2]
[423707860,1780321850000,-500.0,0.00013698,2]
[423707832,1780321850000,-500.0,0.00013698,2]
[423707824,1780321850000,-30754.06684234,0.00012858,2]
[423707823,1780321850000,-215.65015035,0.00012595,2]
[423707825,1780321850000,-2000.0,0.00013143,2]
[423707827,1780321850000,-500.0,0.00013257,2]
[423707826,1780321850000,-3292.0,0.00013159,2]
[423707828,1780321850000,-823.0,0.00013365,2]
[423707829,1780321850000,-30754.06684234,0.00013368,2]
[423707831,1780321850000,-445.22,0.00013458,2]
[423707830,1780321850000,-287.3,0.000134,2]
[423707833,1780321850000,-574.57860626,0.00013698,2]
[423707835,1780321850000,-502.10763154,0.00013698,2]
[423707861,1780321850000,-500.0,0.00013698,2]
[423707849,1780321850000,-500.0,0.00013698,2]
[423707859,1780321850000,-500.0,0.00013698,2]
[423707887,1780321850000,-500.0,0.00013698,2]
[423707885,1780321850000,-500.0,0.00013698,2]
[423707884,1780321850000,-500.0,0.00013698,2]
[423707886,1780321850000,-500.0,0.00013698,2]
[423707888,1780321850000,-500.0,0.00013698,2]
[423707890,1780321850000,-500.0,0.00013698,2]
[423707889,1780321850000,-500.0,0.00013698,2]
[423707891,1780321850000,-500.0,0.00013698,2]
[423707893,1780321850000,-500.0,0.00013698,2]
[423707883,1780321850000,-500.0,0.00013698,2]
[423707895,1780321850000,-505.56076516,0.00013698,2]
[423707896,1780321850000,-1916.41,0.00013698,2]
[423707898,1780321850000,-1916.41,0.00013698,2]
[423707899,1780321850000,-1916.41,0.00013698,2]
[423707903,1780321850000,-1916.41,0.00013698,2]
[423707901,1780321850000,-1916.41,0.00013698,2]
[423707900,1780321850000,-1916.41,0.00013698,2]
[423707902,1780321850000,-1916.41,0.00013698,2]
[423707856,1780321850000,-500.0,0.00013698,2]
[423707897,1780321850000,-1916.41,0.00013698,2]
[423707894,1780321850000,-212.14997454,0.00013698,2]
[423707882,1780321850000,-500.0,0.00013698,2]
[423707892,1780321850000,-500.0,0.00013698,2]
[423707881,1780321850000,-500.0,0.00013698,2]
[423707858,1780321850000,-500.0,0.00013698,2]
[423707880,1780321850000,-273.16118467,0.00013698,2]
[423707862,1780321850000,-500.0,0.00013698,2]
[423707864,1780321850000,-500.0,0.00013698,2]
[423707865,1780321850000,-500.0,0.00013698,2]
[423707866,1780321850000,-500.0,0.00013698,2]
[423707870,1780321850000,-500.0,0.00013698,2]
[423707868,1780321850000,-500.0,0.00013698,2]
[423707869,1780321850000,-500.0,0.00013698,2]
[423707867,1780321850000,-500.0,0.00013698,2]
[423707863,1780321850000,-500.0,0.00013698,2]
[423707879,1780321850000,-500.0,0.00013698,2]
[423707876,1780321850000,-500.0,0.00013698,2]
[423707871,1780321850000,-500.0,0.00013698,2]
[423707874,1780321850000,-500.0,0.00013698,2]
[423707873,1780321850000,-500.0,0.00013698,2]
[423707875,1780321850000,-500.0,0.00013698,2]
[423707878,1780321850000,-500.0,0.00013698,2]
[423707872,1780321850000,-500.0,0.00013698,2]
[423707877,1780321850000,-500.0,0.00013698,2]
[423707934,1780321851000,-615.77,0.00013698,2]
[423707935,1780321851000,-615.77,0.00013698,2]
[423707932,1780321851000,-500.0,0.00013698,2]
[423707925,1780321851000,-560.73,0.00013698,2]
[423707928,1780321851000,-500.0,0.00013698,2]
[423707936,1780321851000,-615.77,0.00013698,2]
[423707924,1780321851000,-560.73,0.00013698,2]
[423707927,1780321851000,-500.0,0.00013698,2]
[423707923,1780321851000,-560.73,0.00013698,2]
[423707938,1780321851000,-615.77,0.00013698,2]
[423707933,1780321851000,-615.77,0.00013698,2]
[423707939,1780321851000,-615.77,0.00013698,2]
[423707940,1780321851000,-615.77,0.00013698,2]
[423707942,1780321851000,-544.17,0.00013698,2]
[423707941,1780321851000,-544.17,0.00013698,2]
[423707944,1780321851000,-544.17,0.00013698,2]
[423707943,1780321851000,-544.17,0.00013698,2]
[423707945,1780321851000,-544.17,0.00013698,2]
[423707946,1780321851000,-544.17,0.00013698,2]
[423707947,1780321851000,-544.17,0.00013698,2]
[423707937,1780321851000,-615.77,0.00013698,2]
[423707931,1780321851000,-500.0,0.00013698,2]
[423707905,1780321851000,-1916.41,0.00013698,2]
[423707930,1780321851000,-500.0,0.00013698,2]
[423707948,1780321851000,-544.17,0.00013698,2]
[423707904,1780321851000,-1916.41,0.00013698,2]
[423707906,1780321851000,-1916.41,0.00013698,2]
[423707908,1780321851000,-1916.41,0.00013698,2]
[423707909,1780321851000,-1916.41,0.00013698,2]
[423707911,1780321851000,-1916.41,0.00013698,2]
[423707910,1780321851000,-1916.41,0.00013698,2]
[423707907,1780321851000,-1916.41,0.00013698,2]
[423707913,1780321851000,-500.0,0.00013698,2]
[423707926,1780321851000,-500.0,0.00013698,2]
[423707914,1780321851000,-500.0,0.00013698,2]
[423707915,1780321851000,-500.0,0.00013698,2]
[423707917,1780321851000,-500.0,0.00013698,2]
[423707916,1780321851000,-500.0,0.00013698,2]
[423707921,1780321851000,-560.73,0.00013698,2]
[423707919,1780321851000,-560.73,0.00013698,2]
[423707918,1780321851000,-554.38885746,0.00013698,2]
[423707920,1780321851000,-560.73,0.00013698,2]
[423707922,1780321851000,-560.73,0.00013698,2]
[423707929,1780321851000,-500.0,0.00013698,2]
[423707912,1780321851000,-1916.41,0.00013698,2]
[423707949,1780321851000,-500.0,0.00013698,2]
[423707982,1780321851000,-500.0,0.00013699,2]
[423707951,1780321851000,-500.0,0.00013698,2]
[423707976,1780321851000,-200.0,0.00013699,2]
[423707975,1780321851000,-500.0,0.00013698,2]
[423707979,1780321851000,-500.0,0.00013699,2]
[423707980,1780321851000,-500.0,0.00013699,2]
[423707984,1780321851000,-500.0,0.00013699,2]
[423707981,1780321851000,-500.0,0.00013699,2]
[423707983,1780321851000,-500.0,0.00013699,2]
[423707987,1780321851000,-500.0,0.00013699,2]
[423707986,1780321851000,-500.0,0.00013699,2]
[423707977,1780321851000,-166.66,0.00013699,2]
[423707988,1780321851000,-500.0,0.00013699,2]
[423707991,1780321851000,-500.0,0.00013699,2]
[423707990,1780321851000,-500.0,0.00013699,2]
[423707994,1780321851000,-500.0,0.00013699,2]
[423707992,1780321851000,-500.0,0.00013699,2]
[423707996,1780321851000,-500.0,0.00013699,2]
[423707995,1780321851000,-500.0,0.00013699,2]
[423707993,1780321851000,-500.0,0.00013699,2]
[423707997,1780321851000,-500.0,0.00013699,2]
[423707950,1780321851000,-500.0,0.00013698,2]
[423707989,1780321851000,-500.0,0.00013699,2]
[423707978,1780321851000,-500.0,0.00013699,2]
[423707985,1780321851000,-500.0,0.00013699,2]
[423707974,1780321851000,-382.83023992,0.00013698,2]
[423707952,1780321851000,-500.0,0.00013698,2]
[423707973,1780321851000,-500.0,0.00013698,2]
[423707954,1780321851000,-500.0,0.00013698,2]
[423707955,1780321851000,-500.0,0.00013698,2]
[423707958,1780321851000,-500.0,0.00013698,2]
[423707959,1780321851000,-500.0,0.00013698,2]
[423707953,1780321851000,-500.0,0.00013698,2]
[423707956,1780321851000,-500.0,0.00013698,2]
[423707961,1780321851000,-500.0,0.00013698,2]
[423707960,1780321851000,-275.90819985,0.00013698,2]
[423707963,1780321851000,-500.0,0.00013698,2]
[423707957,1780321851000,-500.0,0.00013698,2]
[423707964,1780321851000,-500.0,0.00013698,2]
[423707971,1780321851000,-500.0,0.00013698,2]
[423707970,1780321851000,-500.0,0.00013698,2]
[423707967,1780321851000,-500.0,0.00013698,2]
[423707969,1780321851000,-500.0,0.00013698,2]
[423707972,1780321851000,-500.0,0.00013698,2]
[423707966,1780321851000,-500.0,0.00013698,2]
[423707965,1780321851000,-500.0,0.00013698,2]
[423707962,1780321851000,-500.0,0.00013698,2]
[423707968,1780321851000,-500.0,0.00013698,2]
[423708035,1780321852000,-1916.41,0.00013962,2]
[423708028,1780321852000,-150.0,0.00013955,2]
[423708023,1780321852000,-500.0,0.00013878,2]
[423708037,1780321852000,-40182.55971291,0.0001399,2]
[423708030,1780321852000,-150.0,0.00013955,2]
[423708038,1780321852000,-250.0,0.00014,2]
[423708029,1780321852000,-150.0,0.00013955,2]
[423708027,1780321852000,-150.0,0.00013955,2]
[423708036,1780321852000,-166.66,0.00013973,2]
[423708032,1780321852000,-150.0,0.00013955,2]
[423708031,1780321852000,-150.0,0.00013955,2]
[423708048,1780321852000,-2000.0,0.00014039,2]
[423708034,1780321852000,-500.0,0.00013962,2]
[423708039,1780321852000,-2000.0,0.00014039,2]
[423708044,1780321852000,-2000.0,0.00014039,2]
[423708041,1780321852000,-2000.0,0.00014039,2]
[423708042,1780321852000,-2000.0,0.00014039,2]
[423708046,1780321852000,-2000.0,0.00014039,2]
[423708043,1780321852000,-2000.0,0.00014039,2]
[423708045,1780321852000,-2000.0,0.00014039,2]
[423708047,1780321852000,-2000.0,0.00014039,2]
[423708049,1780321852000,-2000.0,0.00014039,2]
[423708024,1780321852000,-30754.06684234,0.00013879,2]
[423708033,1780321852000,-150.0,0.00013955,2]
[423708026,1780321852000,-500.0,0.00013918,2]
[423707999,1780321852000,-500.0,0.00013699,2]
[423708022,1780321852000,-560.73,0.00013878,2]
[423708040,1780321852000,-2000.0,0.00014039,2]
[423707998,1780321852000,-500.0,0.00013699,2]
[423708000,1780321852000,-500.0,0.00013699,2]